bitfinex-derivatives/quotes_BTCF0:USTF0_20250720
["timestamp","ask_amount","ask_price","bid_price","bid_amount"]
[1753018371643,1.14492679,118230.0,118220.0,0.63493559]
[1753018372044,1.14492679,118230.0,118220.0,0.61125559]
[1753018373545,0.56088679,118230.0,118220.0,0.61125559]
[1753018373745,1.14488679,118230.0,118220.0,0.61125559]
[1753018376047,1.14488679,118230.0,118220.0,0.3952148]
[1753018376048,1.30729758,118230.0,118220.0,0.3952148]
[1753018376250,1.14488679,118230.0,118220.0,0.3794548]
[1753018376448,1.50568679,118230.0,118220.0,0.3794548]
[1753018376644,1.66809758,118230.0,118220.0,0.210354]
[1753018376947,1.68540055,118230.0,118220.0,0.25577635]
[1753018378647,1.36057897,118230.0,118220.0,0.25577635]
[1753018378848,1.68540055,118230.0,118220.0,0.25577635]
[1753018380946,1.68540055,118230.0,118220.0,0.210354]
[1753018383952,1.36057897,118230.0,118220.0,0.210354]
[1753018384152,1.68540055,118230.0,118220.0,0.210354]
[1753018384648,0.1691167,118210.0,118200.0,0.04542235]
[1753018384844,0.276801,118200.0,118190.0,0.26216037]
[1753018385045,0.376801,118200.0,118190.0,0.22977037]
[1753018385250,0.53921179,118200.0,118190.0,0.41382116]
[1753018385448,0.53921179,118200.0,118190.0,0.46199116]
[1753018385656,0.53921179,118200.0,118190.0,0.40136099]
[1753018385955,0.53921179,118200.0,118190.0,0.40598099]
[1753018386655,0.53921179,118200.0,118190.0,0.40698099]
[1753018387247,1.06242258,118200.0,118190.0,0.001]
[1753018387446,0.2103253,118190.0,118180.0,0.35511012]
[1753018387642,0.3768153,118190.0,118180.0,0.31282032]
[1753018387844,0.90002609,118190.0,118180.0,0.06063017]
[1753018388048,0.2677796,118180.0,118170.0,0.15021772]
[1753018388249,0.55924039,118180.0,118170.0,0.07443]
[1753018388557,0.55924039,118180.0,118170.0,0.2436039]
[1753018389252,0.55924039,118180.0,118170.0,0.30413156]
[1753018389453,0.55924039,118180.0,118170.0,0.46654235]
[1753018389859,0.55924039,118180.0,118170.0,0.67789635]
[1753018390354,0.55924039,118180.0,118170.0,0.71040635]
[1753018390658,0.3968296,118180.0,118170.0,0.71040635]
[1753018391161,0.3968296,118180.0,118170.0,0.764598]
[1753018391360,0.3968296,118180.0,118170.0,1.125398]
[1753018391862,0.3968296,118180.0,118170.0,1.06487034]
[1753018392755,0.3968296,118180.0,118170.0,1.11022947]
[1753018393361,0.2891596,118180.0,118170.0,1.11022947]
[1753018393659,0.2891597,118180.0,118170.0,1.06487034]
[1753018393860,0.2891597,118180.0,118170.0,1.38487034]
[1753018394258,0.2891597,118180.0,118170.0,1.43021289]
[1753018394660,0.2891597,118180.0,118170.0,1.43121289]
[1753018394967,0.3140297,118180.0,118170.0,1.43221289]
[1753018399163,0.3140297,118180.0,118170.0,1.38687034]
[1753018399767,0.3140297,118180.0,118170.0,1.447398]
[1753018400161,0.14487,118180.0,118170.0,2.034798]
[1753018400362,0.12,118180.0,118170.0,2.104798]
[1753018401157,0.12,118180.0,118170.0,2.04427034]
[1753018401362,0.12,118180.0,118170.0,2.104798]
[1753018401870,0.12,118180.0,118170.0,2.04427034]
[1753018402271,0.12,118180.0,118170.0,1.127398]
[1753018402572,0.12,118180.0,118170.0,1.38687034]
[1753018402770,0.12,118180.0,118170.0,1.98439034]
[1753018403063,0.14487,118180.0,118170.0,1.98439034]
[1753018403264,0.14487,118180.0,118170.0,1.66431034]
[1753018403573,0.14487,118180.0,118170.0,2.01431034]
[1753018403772,0.3140297,118180.0,118170.0,1.41687034]
[1753018403972,0.14487,118180.0,118170.0,1.41687034]
[1753018404158,0.3140297,118180.0,118170.0,1.477398]
[1753018404363,0.3968297,118180.0,118170.0,1.127398]
[1753018404573,0.3968297,118180.0,118170.0,1.66407034]
[1753018405572,0.3968297,118180.0,118170.0,0.8502679]
[1753018405772,0.3968297,118180.0,118170.0,1.66399034]
[1753018406175,0.3968297,118180.0,118170.0,1.724518]
[1753018406669,0.3968297,118180.0,118170.0,1.127398]
[1753018406869,0.3968297,118180.0,118170.0,1.66399034]
[1753018407573,0.3968297,118180.0,118170.0,1.4473879]
[1753018407775,0.3968297,118180.0,118170.0,1.66399034]
[1753018409272,0.22767,118180.0,118170.0,1.66399034]
[1753018409673,0.3968297,118180.0,118170.0,1.66399034]
[1753018410575,0.22767,118180.0,118170.0,1.66399034]
[1753018410770,0.14487,118180.0,118170.0,1.66399034]
[1753018413177,0.20484,118180.0,118170.0,1.66399034]
[1753018413674,0.3398797,118180.0,118170.0,1.724518]
[1753018413877,0.3791497,118180.0,118170.0,1.724518]
[1753018414269,0.4004597,118180.0,118170.0,1.724518]
[1753018415572,0.4004597,118180.0,118170.0,1.4473879]
[1753018415772,0.4004597,118180.0,118170.0,1.73977806]
[1753018416065,0.4004597,118180.0,118170.0,2.06458743]
[1753018416066,0.12,118180.0,118170.0,2.06458743]
[1753018416271,0.2891597,118180.0,118170.0,1.50798499]
[1753018416473,0.3724697,118180.0,118170.0,1.66399034]
[1753018416666,0.3776197,118180.0,118170.0,1.66399034]
[1753018417679,0.3989297,118180.0,118170.0,1.66371034]
[1753018417874,0.3989297,118180.0,118170.0,1.14265806]
[1753018418078,0.3989297,118180.0,118170.0,1.66375034]
[1753018418380,0.3989297,118180.0,118170.0,1.73953806]
[1753018420680,0.61553214,118180.0,118170.0,0.56525562]
[1753018420886,0.61553214,118180.0,118170.0,1.12914562]
[1753018422486,0.61553214,118180.0,118170.0,1.12794572]
[1753018423387,0.61553214,118180.0,118170.0,0.53174572]
[1753018423684,0.97633214,118180.0,118170.0,0.53174572]
[1753018424588,0.97633214,118180.0,118170.0,0.455958]
[1753018425088,0.98463979,118180.0,118170.0,0.454958]
[1753018425382,0.97633214,118180.0,118170.0,0.454958]
[1753018425589,0.61553214,118180.0,118170.0,0.454958]
[1753018425983,0.3989297,118180.0,118170.0,0.454958]
[1753018426987,0.61553214,118180.0,118170.0,0.5155845]
[1753018427289,0.3989297,118180.0,118170.0,0.5155845]
[1753018427490,0.61553214,118180.0,118170.0,0.5155845]
[1753018428690,0.61553214,118180.0,118170.0,0.5407145]
[1753018430686,0.61553214,118180.0,118170.0,0.9015145]
[1753018430892,0.61553214,118180.0,118170.0,0.5407145]
[1753018431097,0.3989297,118180.0,118170.0,0.5407145]
[1753018431288,0.61553214,118180.0,118170.0,0.5407145]
[1753018431488,0.3989297,118180.0,118170.0,0.5407145]
[1753018431690,0.61553214,118180.0,118170.0,0.5407145]
[1753018433296,0.61553214,118180.0,118170.0,0.5155845]
[1753018434287,0.61553214,118180.0,118170.0,0.5407145]
[1753018434489,0.61553214,118180.0,118170.0,0.480088]
[1753018436495,0.61553214,118180.0,118170.0,0.489738]
[1753018442198,0.3989297,118180.0,118170.0,0.5503645]
[1753018442398,0.61553214,118180.0,118170.0,0.5503645]
[1753018442697,0.3989297,118180.0,118170.0,0.5407145]
[1753018442896,0.61553214,118180.0,118170.0,0.5407145]
[1753018443195,0.61553214,118180.0,118170.0,0.5503645]
[1753018443894,0.3989297,118180.0,118170.0,0.5503645]
[1753018444099,0.3989297,118180.0,118170.0,0.76696694]
[1753018445298,0.3989297,118180.0,118170.0,0.70634044]
[1753018445699,0.3989297,118180.0,118170.0,0.489738]
[1753018445999,0.3989297,118180.0,118170.0,0.70634044]
[1753018446392,0.3989297,118180.0,118170.0,0.489738]
[1753018446593,0.3989297,118180.0,118170.0,0.70634044]
[1753018446900,0.3989297,118180.0,118170.0,0.489738]
[1753018447304,0.56139175,118180.0,118170.0,0.65220005]
[1753018448304,0.3989297,118180.0,118170.0,0.65220005]
[1753018448603,0.56139175,118180.0,118170.0,0.65220005]
[1753018450402,0.56139175,118180.0,118170.0,1.01300005]
[1753018450696,0.56139175,118180.0,118170.0,0.65220005]
[1753018453304,0.56139175,118180.0,118170.0,1.01300005]
[1753018454500,0.3124997,118180.0,118170.0,1.07367776]
[1753018455104,0.3705597,118180.0,118170.0,1.07367776]
[1753018455406,0.3705597,118180.0,118170.0,0.91121571]
[1753018455706,0.3982597,118180.0,118170.0,1.01300005]
[1753018455900,0.3982597,118180.0,118170.0,1.0736723]
[1753018456099,0.56072175,118180.0,118170.0,1.0736723]
[1753018457208,0.56072175,118180.0,118170.0,0.7128723]
[1753018460210,0.56072175,118180.0,118170.0,0.65220005]
[1753018460911,0.56072175,118180.0,118170.0,0.71287392]
[1753018461314,0.56072175,118180.0,118170.0,0.55041187]
[1753018461612,0.56072175,118180.0,118170.0,0.71287392]
[1753018461907,0.56072175,118180.0,118170.0,1.01300005]
[1753018462111,0.56072175,118180.0,118170.0,1.24452005]
[1753018463007,0.56072175,118180.0,118170.0,0.65220005]
[1753018463214,0.56072175,118180.0,118170.0,1.24420005]
[1753018464106,0.7231838,118180.0,118170.0,1.046308]
[1753018464510,0.7231838,118180.0,118170.0,0.61689005]
[1753018465524,0.3982597,118180.0,118170.0,0.67756392]
[1753018465727,0.7231838,118180.0,118170.0,0.67756392]
[1753018466026,0.56072175,118180.0,118170.0,0.67756392]
[1753018466225,0.56072175,118180.0,118170.0,0.51510187]
[1753018466524,0.56072175,118180.0,118170.0,0.67756392]
[1753018466925,0.56072175,118180.0,118170.0,0.70218392]
[1753018467620,0.56072175,118180.0,118170.0,0.64151005]
[1753018469122,0.56072175,118180.0,118170.0,0.70218392]
[1753018469324,0.56072175,118180.0,118170.0,0.53972187]
[1753018469626,0.56072175,118180.0,118170.0,0.70218392]
[1753018472520,0.56072175,118180.0,118170.0,0.71161392]
[1753018475233,0.3982597,118180.0,118170.0,0.71161392]
[1753018475530,0.56072175,118180.0,118170.0,0.71161392]
[1753018476128,0.56072175,118180.0,118170.0,1.07241392]
[1753018476531,1.15228175,118180.0,118170.0,1.07241392]
[1753018477025,1.15228175,118180.0,118170.0,0.90995187]
[1753018477333,1.3146238,118180.0,118170.0,0.54915187]
[1753018477631,1.3146238,118180.0,118170.0,0.67756392]
[1753018480434,0.9896997,118180.0,118170.0,0.67756392]
[1753018480731,1.3146238,118180.0,118170.0,0.67756392]
[1753018481433,0.9896997,118180.0,118170.0,0.67756392]
[1753018481634,1.15216175,118180.0,118170.0,0.70218392]
[1753018482430,1.15216175,118180.0,118170.0,0.53972187]
[1753018482629,1.15216175,118180.0,118170.0,0.70218392]
[1753018483031,1.3146238,118180.0,118170.0,0.70218392]
[1753018484136,1.3146238,118180.0,118170.0,0.67756392]
[1753018484338,1.3146238,118180.0,118170.0,0.67556392]
[1753018485940,0.7231838,118180.0,118170.0,0.67556392]
[1753018486241,1.3162238,118180.0,118170.0,0.67556392]
[1753018486941,1.3162238,118180.0,118170.0,0.61489005]
[1753018487240,1.3162238,118180.0,118170.0,0.452428]
[1753018487430,1.3162238,118180.0,118170.0,0.61489005]
[1753018487941,1.3162238,118180.0,118170.0,0.63951005]
[1753018488940,1.15376175,118180.0,118170.0,0.64894005]
[1753018490242,0.9912997,118180.0,118170.0,0.64894005]
[1753018490444,1.15376175,118180.0,118170.0,0.64894005]
[1753018492144,1.15376175,118180.0,118170.0,0.70961392]
[1753018492342,0.9912997,118180.0,118170.0,0.70961392]
[1753018492538,1.15376175,118180.0,118170.0,0.70961392]
[1753018493347,1.15376175,118180.0,118170.0,0.64894005]
[1753018494547,1.15272175,118180.0,118170.0,0.64894005]
[1753018495948,1.15272175,118180.0,118170.0,0.70967712]
[1753018496746,0.9899797,118180.0,118170.0,0.70967712]
[1753018497146,1.15244175,118180.0,118170.0,0.70967712]
[1753018498343,1.15244175,118180.0,118170.0,0.54721507]
[1753018498649,1.15244175,118180.0,118170.0,0.70967712]
[1753018500450,1.15244175,118180.0,118170.0,0.54721507]
[1753018500654,1.15244175,118180.0,118170.0,0.70967712]
[1753018500843,0.9899797,118180.0,118170.0,0.54721507]
[1753018501143,1.15244175,118180.0,118170.0,0.70967712]
[1753018501453,0.9899797,118180.0,118170.0,0.54721507]
[1753018501647,1.15244175,118180.0,118170.0,0.70967712]
[1753018502252,1.15244175,118180.0,118170.0,0.54721507]
[1753018502451,1.15244175,118180.0,118170.0,0.70967712]
[1753018503352,0.9899797,118180.0,118170.0,0.70967712]
[1753018503653,1.15244175,118180.0,118170.0,0.70967712]
[1753018505151,0.9899797,118180.0,118170.0,0.70967712]
[1753018505352,1.15244175,118180.0,118170.0,0.70967712]
[1753018506952,1.15252175,118180.0,118170.0,0.70967712]
[1753018509150,0.20646,118180.0,118170.0,0.87213917]
[1753018509350,0.04594,118190.0,118180.0,0.2737797]
[1753018509652,0.05,118190.0,118180.0,1.61166238]
[1753018509847,0.05,118190.0,118180.0,1.61165789]
[1753018510248,0.05,118190.0,118180.0,1.82301189]
[1753018510757,0.051,118190.0,118180.0,1.82401189]
[1753018510947,0.051,118190.0,118180.0,2.19401189]
[1753018511455,0.05,118190.0,118180.0,2.19501189]
[1753018512155,0.01895911,118200.0,118190.0,0.2737653]
[1753018512355,0.14895911,118200.0,118190.0,1.3901499]
[1753018513756,0.14895911,118200.0,118190.0,1.0201499]
[1753018513949,0.14895911,118200.0,118190.0,1.3901499]
[1753018514254,0.14895911,118200.0,118190.0,1.0201499]
[1753018514458,0.14895911,118200.0,118190.0,0.9594894]
[1753018514656,0.14895911,118200.0,118190.0,1.0201499]
[1753018514858,0.31809071,118200.0,118190.0,0.85768785]
[1753018515256,0.31809071,118200.0,118190.0,1.2315039]
[1753018517349,0.14895911,118200.0,118190.0,1.1708434]
[1753018517858,0.31809071,118200.0,118190.0,1.24669054]
[1753018518351,0.14895911,118200.0,118190.0,1.24669054]
[1753018518748,0.31809071,118200.0,118190.0,1.24669054]
[1753018518947,0.14895911,118200.0,118190.0,1.24669054]
[1753018519359,0.14895911,118200.0,118190.0,1.1708434]
[1753018519760,0.14895911,118200.0,118190.0,1.24669054]
[1753018520259,0.13,118200.0,118190.0,1.24669054]
[1753018520648,0.13,118200.0,118190.0,1.62669054]
[1753018521158,0.13,118200.0,118190.0,1.5508434]
[1753018522258,0.13,118200.0,118190.0,1.61135692]
[1753018522461,0.13,118200.0,118190.0,1.23135692]
[1753018528662,0.13,118200.0,118190.0,1.58135692]
[1753018528962,0.13,118200.0,118190.0,1.57135692]
[1753018529563,0.13,118200.0,118190.0,1.5108434]
[1753018530866,0.13,118200.0,118190.0,1.57133491]
[1753018535963,0.13,118200.0,118190.0,1.23133491]
[1753018537562,0.13,118200.0,118190.0,1.1708434]
[1753018539271,0.13,118200.0,118190.0,1.24669054]
[1753018540067,0.57366475,118200.0,118190.0,1.08422849]
[1753018540263,0.57366475,118200.0,118190.0,1.50070644]
[1753018540469,0.57366475,118200.0,118190.0,1.64777838]
[1753018540671,0.57366475,118200.0,118190.0,0.89759633]
[1753018540968,0.57366475,118200.0,118190.0,1.58728135]
[1753018541172,0.57366475,118200.0,118190.0,1.22648135]
[1753018541771,0.4112027,118200.0,118190.0,1.22648135]
[1753018541973,0.57366475,118200.0,118190.0,1.22648135]
[1753018542968,0.57366475,118200.0,118190.0,1.0640193]
[1753018543163,0.57366475,118200.0,118190.0,1.22648135]
[1753018544372,0.57366475,118200.0,118190.0,1.58728135]
[1753018544576,0.57366475,118200.0,118190.0,1.22648135]
[1753018546977,0.57366475,118200.0,118190.0,1.28709838]
[1753018547978,0.57366475,118200.0,118190.0,1.64789838]
[1753018548680,0.57366475,118200.0,118190.0,1.28709838]
[1753018550173,0.57366475,118200.0,118190.0,1.64789838]
[1753018550480,0.57366475,118200.0,118190.0,1.28709838]
[1753018552967,0.57366475,118200.0,118190.0,1.29626838]
[1753018553380,0.4112027,118200.0,118190.0,1.29626838]
[1753018553678,0.57366475,118200.0,118190.0,1.29626838]
[1753018555375,0.57366475,118200.0,118190.0,1.13380633]
[1753018555575,0.57366475,118200.0,118190.0,1.12463633]
[1753018555776,0.57366475,118200.0,118190.0,1.28709838]
[1753018557675,0.57366475,118200.0,118190.0,1.29630838]
[1753018558082,0.4112027,118200.0,118190.0,1.29630838]
[1753018558283,0.57366475,118200.0,118190.0,1.29630838]
[1753018559889,0.57366475,118200.0,118190.0,1.13384633]
[1753018560284,0.57366475,118200.0,118190.0,1.29630838]
[1753018561782,0.57366475,118200.0,118190.0,1.65710838]
[1753018562286,0.57366475,118200.0,118190.0,1.29630838]
[1753018562587,0.24207,118200.0,118190.0,1.65710838]
[1753018562793,0.3860727,118200.0,118190.0,1.65710838]
[1753018564092,0.13,118200.0,118190.0,1.81957043]
[1753018564395,0.13,118200.0,118190.0,2.19957043]
[1753018565096,0.13,118200.0,118190.0,1.81957043]
[1753018565284,0.13,118200.0,118190.0,1.7589534]
[1753018566091,0.13,118200.0,118190.0,2.1189534]
[1753018566497,0.13,118200.0,118190.0,2.19480054]
[1753018568403,0.13,118200.0,118190.0,2.1189534]
[1753018568900,0.13,118200.0,118190.0,1.50987644]
[1753018569100,0.13,118200.0,118190.0,2.18480054]
[1753018569303,0.13,118200.0,118190.0,2.1089534]
[1753018569604,0.11953,118200.0,118190.0,2.19480054]
[1753018570001,0.11953,118200.0,118190.0,2.1189534]
[1753018570602,0.11953,118200.0,118190.0,2.19480054]
[1753018571599,0.11953,118200.0,118190.0,1.60696054]
[1753018571905,0.11953,118200.0,118190.0,2.19448054]
[1753018572405,0.11953,118200.0,118190.0,2.1186334]
[1753018573008,0.11953,118200.0,118190.0,1.1711134]
[1753018573200,0.11953,118200.0,118190.0,2.1085934]
[1753018573396,0.11953,118200.0,118190.0,1.7585934]
[1753018573600,0.11953,118200.0,118190.0,2.0785934]
[1753018574407,0.11953,118200.0,118190.0,2.15444054]
[1753018575710,0.11953,118200.0,118190.0,2.0785934]
[1753018576108,0.11953,118200.0,118190.0,2.15444054]
[1753018576311,0.11953,118200.0,118190.0,2.0785934]
[1753018576706,0.11953,118200.0,118190.0,2.15444054]
[1753018576906,0.11953,118200.0,118190.0,2.0785934]
[1753018579713,0.11953,118200.0,118190.0,1.7585934]
[1753018579914,0.11953,118200.0,118190.0,2.1385934]
[1753018580606,0.11953,118200.0,118190.0,2.21444054]
[1753018580809,0.28472,118220.0,118210.0,0.205119]
[1753018581008,0.0819,118220.0,118210.0,1.55006766]
[1753018582013,0.0819,118220.0,118210.0,1.38760561]
[1753018582213,0.0839,118220.0,118210.0,1.44823139]
[1753018583209,0.0839,118220.0,118210.0,1.51479808]
[1753018583609,0.0869,118220.0,118210.0,1.51479808]
[1753018584109,0.0869,118220.0,118210.0,1.4541723]
[1753018584806,0.0869,118220.0,118210.0,1.4545223]
[1753018585008,0.0869,118220.0,118210.0,1.87593811]
[1753018585209,0.0869,118220.0,118210.0,2.03532333]
[1753018586521,0.13338,118220.0,118210.0,2.03532333]
[1753018587219,0.13338,118220.0,118210.0,2.09594084]
[1753018590820,0.29584205,118220.0,118210.0,2.09594084]
[1753018591012,0.13338,118220.0,118210.0,2.09594084]
[1753018592622,0.07181,118220.0,118210.0,2.09594084]
[1753018592823,0.03871,118220.0,118210.0,2.09594084]
[1753018593125,0.07252,118220.0,118210.0,2.09594084]
[1753018598327,0.2416247,118220.0,118210.0,2.09594084]
[1753018599126,0.2666847,118220.0,118210.0,2.09594084]
[1753018599329,0.3043547,118220.0,118210.0,2.09594084]
[1753018599523,0.46681675,118220.0,118210.0,2.09594084]
[1753018599828,0.46681675,118220.0,118210.0,2.03532333]
[1753018600129,0.46681675,118220.0,118210.0,2.11117047]
[1753018600339,0.46681675,118220.0,118210.0,2.11082047]
[1753018601026,0.46681675,118220.0,118210.0,1.94835842]
[1753018601226,0.46681675,118220.0,118210.0,2.11082047]
[1753018602128,0.46681675,118220.0,118210.0,2.03497333]
[1753018603832,0.46681675,118220.0,118210.0,2.11082047]
[1753018604835,0.3043547,118220.0,118210.0,1.75002047]
[1753018605036,0.29771205,118220.0,118210.0,1.75002047]
[1753018606131,0.13525,118220.0,118210.0,1.75002047]
[1753018606435,0.29771205,118220.0,118210.0,1.75002047]
[1753018606627,0.29771205,118220.0,118210.0,1.75037047]
[1753018607034,0.29771205,118220.0,118210.0,1.16293047]
[1753018607234,0.29771205,118220.0,118210.0,1.75013047]
[1753018608535,0.13525,118220.0,118210.0,1.75013047]
[1753018608730,0.29771205,118220.0,118210.0,1.75013047]
[1753018608931,0.46681675,118220.0,118210.0,1.75013047]
[1753018609731,0.29771205,118220.0,118210.0,1.75013047]
[1753018610133,0.13525,118220.0,118210.0,1.75013047]
[1753018610432,0.29771205,118220.0,118210.0,1.67428333]
[1753018613334,0.29771205,118220.0,118210.0,1.75013047]
[1753018613734,0.29771205,118220.0,118210.0,1.67428333]
[1753018614634,0.46681675,118220.0,118210.0,1.67428333]
[1753018615034,0.46681675,118220.0,118210.0,1.75013047]
[1753018620035,0.29771205,118220.0,118210.0,1.75013047]
[1753018620244,0.13525,118220.0,118210.0,1.75013047]
[1753018620536,0.29771205,118220.0,118210.0,1.75013047]
[1753018621240,0.13525,118220.0,118210.0,1.75013047]
[1753018621638,0.13525,118220.0,118210.0,1.7351036]
[1753018622138,0.29771205,118220.0,118210.0,1.7351036]
[1753018622540,0.46681675,118220.0,118210.0,1.7351036]
[1753018623342,0.3043547,118220.0,118210.0,1.7347536]
[1753018623534,0.46681675,118220.0,118210.0,1.7347536]
[1753018625740,0.46681675,118220.0,118210.0,1.3739536]
[1753018625931,0.46681675,118220.0,118210.0,1.7347536]
[1753018626642,0.3043547,118220.0,118210.0,1.7347536]
[1753018626841,0.46681675,118220.0,118210.0,1.7347536]
[1753018628742,0.3043547,118220.0,118210.0,1.74978047]
[1753018629043,0.46681675,118220.0,118210.0,1.74978047]
[1753018629242,0.3043547,118220.0,118210.0,1.74978047]
[1753018629541,0.46681675,118220.0,118210.0,1.74978047]
[1753018630240,0.025,118220.0,118210.0,1.16258047]
[1753018630442,0.03455,118220.0,118210.0,1.91208252]
[1753018630835,0.03455,118220.0,118210.0,1.74962047]
[1753018631037,0.03455,118220.0,118210.0,1.67377333]
[1753018631839,0.03455,118220.0,118210.0,1.83623538]
[1753018632439,0.03455,118220.0,118210.0,1.91208252]
[1753018632742,0.2036547,118220.0,118210.0,1.74962047]
[1753018632942,0.2368747,118220.0,118210.0,1.58715842]
[1753018633137,0.2417447,118220.0,118210.0,1.74962047]
[1753018633338,0.2652447,118220.0,118210.0,1.16258047]
[1753018633538,0.2652447,118220.0,118210.0,1.74958047]
[1753018633747,0.09614,118220.0,118210.0,1.74958047]
[1753018634039,0.11196,118220.0,118210.0,1.74958047]
[1753018635046,0.03455,118220.0,118210.0,1.74958047]
[1753018635445,0.03455,118220.0,118210.0,1.91204252]
[1753018635647,0.03455,118220.0,118210.0,1.74958047]
[1753018641450,0.03455,118220.0,118210.0,1.67373333]
[1753018643652,0.03455,118220.0,118210.0,1.74979916]
[1753018647941,0.025,118220.0,118210.0,1.97310353]
[1753018648146,0.025,118220.0,118210.0,1.8970377]
[1753018648548,0.025,118220.0,118210.0,1.83619538]
[1753018649351,0.025,118220.0,118210.0,1.89704285]
[1753018649554,0.025,118220.0,118210.0,1.83619538]
[1753018651253,0.025,118220.0,118210.0,1.91226121]
[1753018652359,0.025,118220.0,118210.0,1.58733711]
[1753018652553,0.025,118220.0,118210.0,1.91226121]
[1753018655861,0.025,118220.0,118210.0,1.94238138]
[1753018656359,0.025,118220.0,118210.0,1.83619538]
[1753018657059,0.023,118220.0,118210.0,1.91224415]
[1753018657957,0.023,118220.0,118210.0,2.24224415]
[1753018658357,0.17391297,118240.0,118230.0,0.2056904]
[1753018658563,0.19391297,118240.0,118230.0,1.43102754]
[1753018659261,0.19847297,118240.0,118230.0,1.43102754]
[1753018659461,0.38380907,118240.0,118230.0,1.26856549]
[1753018659963,0.3648361,118240.0,118230.0,1.07022754]
[1753018660164,0.11,118240.0,118230.0,1.82172513]
[1753018660367,0.11,118240.0,118230.0,1.76090004]
[1753018660572,0.11,118240.0,118230.0,1.59843799]
[1753018661071,0.11,118240.0,118230.0,1.67448676]
[1753018661368,0.11,118240.0,118230.0,1.59843799]
[1753018661566,0.111,118240.0,118230.0,1.59843799]
[1753018662172,0.111,118240.0,118230.0,1.65920102]
[1753018663867,0.2800762,118240.0,118230.0,1.65920102]
[1753018664574,0.111,118240.0,118230.0,1.49673897]
[1753018664775,0.111,118240.0,118230.0,1.65920102]
[1753018666667,0.111,118240.0,118230.0,1.49673897]
[1753018666977,0.52829815,118240.0,118230.0,1.01159799]
[1753018667178,0.54811815,118240.0,118230.0,1.59835799]
[1753018667573,0.54811815,118240.0,118230.0,1.01159799]
[1753018667779,1.0713802,118240.0,118230.0,0.211354]
[1753018668278,1.0713802,118240.0,118230.0,0.3804443]
[1753018668784,1.08877759,118240.0,118230.0,0.3804443]
[1753018672078,1.25792959,118240.0,118230.0,0.211354]
[1753018672280,1.42039164,118240.0,118230.0,0.211354]
[1753018672682,1.25792959,118240.0,118230.0,0.211354]
[1753018676387,1.42039164,118240.0,118230.0,0.211354]
[1753018676887,1.25792959,118240.0,118230.0,0.211354]
[1753018677784,1.50792959,118240.0,118230.0,0.211354]
[1753018677990,0.2771689,118210.0,118200.0,0.13386303]
[1753018678193,0.91043095,118210.0,118200.0,0.0362]
[1753018678889,0.91043095,118210.0,118200.0,0.06845]
[1753018679393,0.91043095,118210.0,118200.0,0.07245]
[1753018679583,0.91043095,118210.0,118200.0,0.07445]
[1753018680199,0.91043095,118210.0,118200.0,0.07245]
[1753018680588,0.2115932,118200.0,118190.0,0.93500508]
[1753018680792,0.54964525,118200.0,118190.0,0.93500508]
[1753018681393,0.54964525,118200.0,118190.0,0.95239751]
[1753018681898,0.54964525,118200.0,118190.0,0.59159751]
[1753018682094,0.54964525,118200.0,118190.0,0.73383605]
[1753018682294,0.54964525,118200.0,118190.0,0.571374]
[1753018682493,0.54964525,118200.0,118190.0,0.73383605]
[1753018682691,0.54964525,118200.0,118190.0,0.73783605]
[1753018682888,0.54964525,118200.0,118190.0,0.66234925]
[1753018683396,0.54964525,118200.0,118190.0,0.65934925]
[1753018683593,0.55064525,118200.0,118190.0,0.65834925]
[1753018684498,0.55064525,118200.0,118190.0,0.68250925]
[1753018684887,0.55064525,118200.0,118190.0,0.6909271]
[1753018685890,0.55064525,118200.0,118190.0,0.6999671]
[1753018687796,0.3881832,118200.0,118190.0,0.6999671]
[1753018687996,0.55064525,118200.0,118190.0,0.6999671]
[1753018689898,0.55064525,118200.0,118190.0,0.53750505]
[1753018690294,0.55064525,118200.0,118190.0,0.69154925]
[1753018692498,0.55064525,118200.0,118190.0,0.5290872]
[1753018692696,0.55064525,118200.0,118190.0,0.69154925]
[1753018693999,0.21905,118200.0,118190.0,0.69154925]
[1753018694198,0.21905,118200.0,118190.0,1.12155167]
[1753018700306,0.1354,118200.0,118190.0,1.2840441]
[1753018700496,0.111,118200.0,118190.0,1.2840441]
[1753018700995,0.1354,118200.0,118190.0,1.2840441]
[1753018701904,0.1354,118200.0,118190.0,0.95912]
[1753018702105,0.1354,118200.0,118190.0,1.2840441]
[1753018702502,0.14484,118200.0,118190.0,1.2840441]
[1753018702903,0.17659,118200.0,118190.0,1.2840441]
[1753018704104,0.14484,118200.0,118190.0,1.2840441]
[1753018705206,0.1354,118200.0,118190.0,1.2840441]
[1753018705899,0.111,118200.0,118190.0,1.2840441]
[1753018706206,0.111,118200.0,118190.0,0.95912]
[1753018706407,0.111,118200.0,118190.0,1.2840441]
[1753018707708,0.1348,118200.0,118190.0,1.2840441]
[1753018708306,0.1348,118200.0,118190.0,1.29929946]
[1753018710712,0.1348,118200.0,118190.0,0.97437536]
[1753018710912,0.1348,118200.0,118190.0,1.29929946]
[1753018711106,0.1348,118200.0,118190.0,1.22325069]
[1753018711306,0.1348,118200.0,118190.0,1.06078864]
[1753018712815,0.1348,118200.0,118190.0,1.22325069]
[1753018713419,0.1348,118200.0,118190.0,1.80977069]
[1753018715620,0.1348,118200.0,118190.0,1.22325069]
[1753018715820,0.1348,118200.0,118190.0,1.80973069]
[1753018716825,0.1348,118200.0,118190.0,1.22325069]
[1753018717024,0.1348,118200.0,118190.0,1.64722864]
[1753018717322,0.14473,118200.0,118190.0,1.64722864]
[1753018718516,0.111,118200.0,118190.0,1.80969069]
[1753018720025,0.111,118200.0,118190.0,1.88573946]
[1753018731228,0.111,118200.0,118190.0,2.20573946]
[1753018732933,0.73402689,118200.0,118190.0,0.94117536]
[1753018733231,0.57156484,118200.0,118190.0,1.68980763]
[1753018735035,0.57156484,118200.0,118190.0,1.61370864]
[1753018735334,0.57156484,118200.0,118190.0,1.63712864]
[1753018736129,0.57156484,118200.0,118190.0,1.27632864]
[1753018737431,0.57156484,118200.0,118190.0,1.63712864]
[1753018737636,0.57156484,118200.0,118190.0,1.64658864]
[1753018737835,0.57156484,118200.0,118190.0,1.48412659]
[1753018738038,0.40910279,118200.0,118190.0,1.64658864]
[1753018738236,0.57156484,118200.0,118190.0,1.28578864]
[1753018740937,0.57156484,118200.0,118190.0,1.34666093]
[1753018742241,0.57156484,118200.0,118190.0,1.18419888]
[1753018742438,0.57156484,118200.0,118190.0,1.34666093]
[1753018743044,0.40910279,118200.0,118190.0,1.34666093]
[1753018743237,0.13017999,118200.0,118190.0,1.79825069]
[1753018743541,0.13017999,118200.0,118190.0,2.15905069]
[1753018743735,0.13017999,118200.0,118190.0,2.23514968]
[1753018744345,0.13017999,118200.0,118190.0,2.15905069]
[1753018745343,0.13017999,118200.0,118190.0,2.23514968]